lending/lending_fUSD_20240705
["ID","MTS","AMOUNT","RATE_DAILY","PERIOD"]
[331285878,1720182639437,-1168.57402538,0.00013343,2]
[331285879,1720182639449,-1489.75692948,0.00013343,2]
[331285880,1720182639462,-2767.74684288,0.00013343,2]
[331285881,1720182639474,-3735.91220226,0.00013343,2]
[331285882,1720182639484,-1956.859,0.00013416,2]
[331285883,1720182639494,-154.5,0.00013462,2]
[331285884,1720182639507,-227.23,0.0001347,2]
[331285885,1720182639519,-499.99,0.0001347,2]
[331285886,1720182639531,-3188.14812495,0.00013472,2]
[331285887,1720182639544,-2413.52538331,0.00013472,2]
[331285888,1720182639556,-1833.05752929,0.00013472,2]
[331285889,1720182639569,-3768.61597897,0.00013472,2]
[331285890,1720182639594,-1903.65279599,0.00013472,2]
[331285891,1720182639605,-155.20374793,0.00013574,2]
[331285892,1720182639616,-675.76502173,0.00013574,2]
[331285893,1720182639627,-290.22605958,0.00013574,2]
[331285894,1720182639637,-159.30941425,0.00013574,2]
[331285895,1720182639647,-482.75596204,0.00013574,2]
[331285896,1720182639659,-150.0,0.00013725,2]
[331285897,1720182639671,-4372.51709576,0.00013726,2]
[331285898,1720182639682,-3111.08002322,0.00013759,2]
[331285899,1720182639693,-643.9711,0.000138,2]
[331285900,1720182639703,-1956.859,0.000138,2]
[331285901,1720182639714,-2738.14487436,0.00013849,2]
[331285902,1720182639724,-670.27,0.0001389,3]
[331285903,1720182639735,-11243.7493,0.000139,2]
[331285904,1720182639745,-100000.0,0.000139,2]
[331285905,1720182639755,-909.12,0.000139,2]
[331285906,1720182639766,-4815.15,0.000139,2]
[331285907,1720182639777,-1000.0,0.00013957,2]
[331285908,1720182639787,-3074.42673232,0.00013999,2]
[331285909,1720182639798,-250.0,0.00014019,2]
[331285910,1720182639809,-3278.6,0.00014078,2]
[331285911,1720182639819,-157.5073195,0.00014099,2]
[331285912,1720182639831,-476.45,0.00014112,2]
[331285913,1720182639852,-2057.76,0.00014293,2]
[331285914,1720182639862,-420.0,0.00014394,2]
[331285915,1720182639873,-4461.53872289,0.00014499,2]
[331285916,1720182639883,-669.12,0.00014653,2]
[331285917,1720182639893,-175.04,0.00014812,2]
[331285918,1720182639903,-1409.48811,0.0001485,2]
[331285919,1720182639912,-169.01,0.00014893,2]
[331285920,1720182639923,-2375.7192167,0.00014899,2]
[331285921,1720182639933,-1816.88391842,0.00014899,2]
[331285922,1720182639944,-8245.1614,0.000149,2]
[331285923,1720182639955,-6268.8319,0.000149,2]
[331285924,1720182639965,-324.80988124,0.000149,2]
[331285925,1720182639976,-155.0,0.00014999,2]
[331285926,1720182639986,-155.0,0.00014999,2]
[331285927,1720182639997,-2832.1472324,0.00014999,2]
[331285928,1720182640008,-83699.36815268,0.00015,2]
[331285929,1720182640021,-3396.25501358,0.00015,2]
[331285930,1720182640034,-464.35756704,0.00015,2]
[331285931,1720182640047,-265.615,0.00015,2]
[331285965,1720182640964,-39283.22837873,0.00015,2]
[331285967,1720182640978,-700.829879,0.00015,2]
[331285969,1720182640992,-7775.9653312,0.00015,2]
[331285972,1720182641006,-771.07115909,0.00015,2]
[331285974,1720182641020,-987.45743925,0.00015,2]
[331285976,1720182641033,-758.11221771,0.00015,2]
[331285978,1720182641047,-4067.32114171,0.00015,2]
[331285980,1720182641060,-1192.80835842,0.00015,2]
[331285982,1720182641074,-933.3941324,0.00015,2]
[331285985,1720182641103,-312.004999,0.00015,2]
[331285987,1720182641115,-2837.74696614,0.00015,2]
[331285989,1720182641128,-24146.55238719,0.00015,2]
[331285991,1720182641141,-3034.23261669,0.00015,2]
[331285994,1720182641154,-319.81405891,0.00015,2]
[331285996,1720182641166,-60293.08773721,0.00015,2]
[331286020,1720182641688,-2617.88190555,0.00013999,2]
[331286021,1720182641698,-25763.45809445,0.00015,2]
[331286043,1720182649863,-2378.93432536,0.00013574,2]
[331286047,1720182649874,-1251.4482247,0.00015,2]
[331286052,1720182649886,-10862.74545702,0.00015,2]
[331286056,1720182649897,-2486.92289664,0.00015,2]
[331286060,1720182649909,-348.5255592,0.00015,2]
[331286064,1720182649920,-556.04209334,0.00015,2]
[331286067,1720182649932,-555.0,0.00015,2]
[331286068,1720182649944,-292.5,0.00015,2]
[331286069,1720182649956,-20414.96051313,0.00015,2]
[331286070,1720182649966,-150.0,0.00015068,2]
[331286071,1720182649975,-1399.54620502,0.00015479,2]
[331286072,1720182649985,-1145.4913337,0.00015535,2]
[331286073,1720182649994,-1547.58956559,0.00015579,2]
[331286074,1720182650003,-296.78659241,0.00015579,2]
[331286075,1720182650031,-737.1110252,0.00015579,2]
[331286076,1720182650041,-1402.4806158,0.00015579,7]
[331286077,1720182650051,-263.4402613,0.00015579,2]
[331286078,1720182650061,-1000.0,0.00015701,2]
[331286079,1720182650071,-587.0,0.00015783,2]
[331286080,1720182650080,-167.0,0.00015831,2]
[331286081,1720182650090,-227.17477303,0.00015832,2]
[331286082,1720182650100,-3913.73516561,0.00016172,2]
[331286083,1720182650111,-1386.48863471,0.00016315,2]
[331286084,1720182650120,-1135.49782486,0.00016315,2]
[331286085,1720182650130,-3026.88693848,0.00016315,2]
[331286086,1720182650140,-1055.35982882,0.00016315,2]
[331286087,1720182650150,-356.30245499,0.00016315,2]
[331286088,1720182650159,-1271.41583717,0.00016315,2]
[331286089,1720182650169,-167.0,0.00016354,2]
[331286090,1720182650178,-150.0,0.00016438,2]
[331286091,1720182650188,-619.29426616,0.000165,2]
[331286092,1720182650198,-1265.01058332,0.00016699,2]
[331286093,1720182650208,-1070.57272705,0.00016699,2]
[331286094,1720182650218,-184.2,0.00016712,2]
[331286095,1720182650229,-853.0,0.000168,2]
[331286096,1720182650239,-167.0,0.00016876,2]
[331286097,1720182650248,-669.12,0.00016917,2]
[331286098,1720182650258,-168.42,0.00017084,2]
[331286099,1720182650268,-754.06054418,0.00017159,2]
[331286100,1720182650281,-721.44508691,0.00017159,2]
[331286101,1720182650291,-690.89571217,0.00017199,2]
[331286102,1720182650301,-193.62934922,0.00017199,2]
[331286103,1720182650311,-647.79973678,0.00017199,2]
[331286104,1720182650322,-651.44479338,0.00017253,2]
[331286105,1720182650332,-788.84536282,0.00017253,2]
[331286106,1720182650342,-216.67569474,0.00017259,2]
[331286107,1720182650352,-823.0,0.00017307,2]
[331286108,1720182650362,-1409.48811,0.0001735,2]
[331286109,1720182650371,-169.01,0.00017375,2]
[331286110,1720182650381,-167.0,0.00017399,2]
[331286111,1720182650391,-717.97789183,0.00017444,2]
[331286112,1720182650401,-1000.0,0.00017446,2]
[331286113,1720182650411,-155.57780324,0.00017533,2]
[331286114,1720182650420,-1287.48512797,0.00017533,2]
[331286115,1720182650430,-272.93353483,0.00017533,2]
[331286116,1720182650439,-254.227224,0.00017566,2]
[331286117,1720182650449,-308.12292157,0.00017566,2]
[331286118,1720182650459,-195.92266575,0.00017566,2]
[331286119,1720182650469,-155.0,0.00017599,2]
[331286120,1720182650478,-150.12108655,0.0001766,2]
[331286121,1720182650488,-310.0,0.00017703,2]
[331286122,1720182650497,-366.11090361,0.00017703,2]
[331286123,1720182650510,-3394.25146719,0.00017807,2]
[331286124,1720182650521,-155.0,0.00017807,2]
[331286125,1720182650530,-155.0,0.00017807,2]
[331286126,1720182650540,-5125.05847204,0.00017889,2]
[331286127,1720182650550,-167.0,0.00017921,2]
[331286128,1720182650559,-623.48458061,0.00017925,2]
[331286129,1720182650570,-660.70344244,0.00017999,2]
[331286130,1720182650585,-192.0797515,0.00018,2]
[331286131,1720182650595,-415.70505063,0.00018,2]
[331286132,1720182650605,-314.87509155,0.00018,2]
[331286133,1720182650616,-685.06477435,0.00018081,2]
[331286134,1720182650627,-167.0,0.00018444,2]
[331286135,1720182650637,-164.81,0.00018849,30]
[331286136,1720182650647,-290.97986156,0.00018864,2]
[331286137,1720182650657,-533.66826194,0.00018864,2]
[331286138,1720182650667,-155.93987876,0.00018864,2]
[331286139,1720182650677,-151.37,0.000189,2]
[331286140,1720182650687,-266.23744785,0.00018919,2]
[331286141,1720182650697,-1152.0,0.00018978,2]
[331286142,1720182650707,-450.95794745,0.00018999,2]
[331286143,1720182650717,-5000.0,0.00019,2]
[331286144,1720182650727,-155.34957523,0.00019,2]
[331286145,1720182650736,-222.35044918,0.00019,2]
[331286146,1720182650746,-5408.78,0.00019178,2]
[331286147,1720182650756,-250.0,0.00019178,2]
[331286148,1720182650766,-669.12,0.00019181,2]
[331286149,1720182650776,-1000.0,0.0001919,2]
[331286150,1720182650786,-368.22479486,0.00019229,2]
[331286151,1720182650796,-4172.754,0.00019332,2]
[331286152,1720182650806,-562.745,0.00019332,2]
[331286153,1720182650816,-451.146,0.00019332,2]
[331286154,1720182650828,-444.0,0.00019332,2]
[331286155,1720182650837,-296.98016859,0.0001935,2]
[331286156,1720182650848,-156.31937905,0.0001935,2]
[331286157,1720182650858,-436.0449423,0.00019352,2]
[331286158,1720182650868,-891.01341507,0.00019354,2]
[331286159,1720182650878,-1253.30119177,0.00019389,2]
[331286160,1720182650887,-161.28077976,0.00019389,2]
[331286161,1720182650897,-2775.68967099,0.00019436,2]
[331286162,1720182650906,-155.71818757,0.00019451,2]
[331286163,1720182650916,-2500.0,0.000195,2]
[331286164,1720182650926,-155.0,0.00019548,2]
[331286165,1720182650936,-530.56091548,0.00019565,2]
[331286166,1720182650946,-854.33,0.00019589,2]
[331286167,1720182650955,-854.33,0.00019589,2]
[331286168,1720182650965,-500.0,0.00019642,2]
[331286169,1720182650975,-809.0,0.00019712,2]
[331286170,1720182650984,-622.653,0.00019712,2]
[331286171,1720182650994,-255.67407275,0.00019725,2]
[331286172,1720182651004,-526.09991014,0.00019725,2]
[331286173,1720182651014,-283.33,0.00019726,2]
[331286174,1720182651023,-151.37,0.0001979,2]
[331286175,1720182651033,-155703.039563,0.000198,3]
[331286176,1720182651042,-1409.48811,0.0001985,2]
[331286177,1720182651052,-165.635146,0.00019855,2]
[331286178,1720182651061,-758.30614671,0.00019855,2]
[331286179,1720182651071,-169.01,0.00019857,2]
[331286180,1720182651081,-188.88739323,0.00019864,2]
[331286181,1720182651090,-151.37,0.0001988,2]
[331286182,1720182651099,-51901.0131878,0.0001989,3]
[331286183,1720182651109,-173.8234745,0.00019899,2]
[331286184,1720182651118,-1359.0,0.000199,2]
[331286185,1720182651128,-67862.1383785,0.000199,3]
[331286186,1720182651137,-151.37,0.00019945,2]
[331286187,1720182651147,-12975.2532969,0.00019954,3]
[331286188,1720182651156,-11310.3563964,0.00019954,3]
[331286189,1720182651165,-19804.68706189,0.00019964,2]
[331286190,1720182651174,-524.1073643,0.00019964,2]
[331286191,1720182651183,-11310.3563964,0.0001997,3]
[331286192,1720182651193,-12975.2532969,0.0001998,3]
[331286193,1720182651202,-9282.09534793,0.0001998,3]
[331286194,1720182651215,-2028.26104847,0.0001998,3]
[331286195,1720182651225,-7489.87394247,0.0001999,2]
[331286196,1720182651235,-12975.2532969,0.0001999,3]
[331286197,1720182651244,-11310.3563964,0.0001999,3]
[331286198,1720182651254,-2006.95019857,0.0001999,2]
[331286199,1720182651263,-151.37,0.0001999,2]
[331286200,1720182651273,-544.76386976,0.00019997,2]
[331286201,1720182651282,-1273.12710935,0.0002,2]
[331286202,1720182651292,-12764.2095809,0.0002,3]
[331286203,1720182651301,-1183.67000984,0.0002,2]
[331286204,1720182651310,-155.14145045,0.0002,3]
[331286205,1720182651320,-187.93883202,0.0002,2]
[331286206,1720182651330,-1250.0,0.0002,2]
[331286207,1720182651340,-154.44696292,0.0002,2]
[331286208,1720182651350,-154.44696292,0.0002,2]
[331286209,1720182651359,-154.44696292,0.0002,2]
[331286210,1720182651369,-154.44696292,0.0002,2]
[331286211,1720182651378,-154.44696292,0.0002,2]
[331286212,1720182651388,-154.44696292,0.0002,2]
[331286213,1720182651397,-154.44696292,0.0002,2]
[331286214,1720182651407,-154.44696292,0.0002,2]
[331286215,1720182651418,-154.44696292,0.0002,2]
[331286216,1720182651427,-154.44696292,0.0002,2]
[331286217,1720182651437,-154.44696292,0.0002,2]
[331286218,1720182651446,-154.44696292,0.0002,2]
[331286219,1720182651455,-154.44696292,0.0002,2]
[331286220,1720182651465,-154.44696292,0.0002,2]
[331286221,1720182651474,-154.44696292,0.0002,2]
[331286222,1720182651483,-154.44696292,0.0002,2]
[331286223,1720182651492,-154.44696292,0.0002,2]
[331286224,1720182651502,-154.44696292,0.0002,2]
[331286225,1720182651514,-154.44696292,0.0002,2]
[331286226,1720182651525,-154.44696292,0.0002,2]
[331286227,1720182651535,-154.44696292,0.0002,2]
[331286228,1720182651545,-154.44696292,0.0002,2]
[331286229,1720182651555,-154.44696292,0.0002,2]
[331286230,1720182651565,-154.44696292,0.0002,2]
[331286231,1720182651574,-154.44696292,0.0002,2]
[331286232,1720182651589,-154.44696292,0.0002,2]
[331286233,1720182651599,-154.44696292,0.0002,2]
[331286234,1720182651608,-154.44696292,0.0002,2]
[331286235,1720182651618,-154.44696292,0.0002,2]
[331286236,1720182651630,-154.44696292,0.0002,2]
[331286237,1720182651640,-154.44696292,0.0002,2]
[331286238,1720182651650,-154.44696292,0.0002,2]
[331286239,1720182651661,-154.44696292,0.0002,2]
[331286240,1720182651671,-154.44696292,0.0002,2]
[331286241,1720182651681,-154.44696292,0.0002,2]
[331286242,1720182651691,-154.44696292,0.0002,2]
[331286243,1720182651701,-154.44696292,0.0002,2]
[331286244,1720182651710,-154.44696292,0.0002,2]
[331286245,1720182651720,-154.44696292,0.0002,2]
[331286246,1720182651730,-154.44696292,0.0002,2]
[331286247,1720182651740,-154.44696292,0.0002,2]
[331286248,1720182651749,-154.44696292,0.0002,2]
[331286249,1720182651760,-154.44696292,0.0002,2]
[331286250,1720182651769,-154.44696292,0.0002,2]
[331286251,1720182651779,-758.3061466,0.00020131,2]
[331286252,1720182651789,-12975.2532969,0.0002026,3]
[331286253,1720182651798,-11310.3563964,0.0002026,3]
[331286254,1720182651961,-12975.2532969,0.0002027,3]
[331286255,1720182651971,-11310.3563964,0.0002027,3]
[331286256,1720182651981,-1305.0,0.0002028,2]
[331286257,1720182651990,-2375.0,0.0002028,2]
[331286258,1720182652000,-1988.0,0.0002028,2]
[331286259,1720182652010,-548.0,0.0002028,2]
[331286260,1720182652020,-3249.0,0.0002028,2]
[331286261,1720182652029,-283.0,0.0002028,2]
[331286262,1720182652039,-360.0,0.0002028,2]
[331286263,1720182652049,-1830.0,0.0002028,2]
[331286264,1720182652058,-5811.0,0.0002028,2]
[331286265,1720182652068,-1250.0,0.0002028,2]
[331286266,1720182652077,-1658.0,0.0002028,2]
[331286267,1720182652087,-758.3061466,0.00020407,2]
[331286268,1720182652097,-12975.2532969,0.0002049,3]
[331286269,1720182652106,-250.148289,0.000205,2]
[331286270,1720182652116,-333.67622311,0.000205,2]
[331286271,1720182652126,-318.67,0.00020548,2]
[331286272,1720182652135,-164.9,0.00020548,2]
[331286273,1720182652144,-758.3061466,0.00020683,2]
[331286274,1720182652154,-150.125,0.0002076,2]
[331286275,1720182652163,-154.668,0.0002076,2]
[331286276,1720182652172,-1613.0,0.00020809,2]
[331286277,1720182652182,-11310.3563964,0.00020925,3]
[331286278,1720182652191,-1000.0,0.00020935,2]
[331286279,1720182652201,-758.3061466,0.00020959,2]
[331286280,1720182652210,-151.37,0.0002096,2]
[331286281,1720182652220,-25950.5065939,0.0002097,3]
[331286282,1720182652230,-22620.7127928,0.0002097,3]
[331286283,1720182652240,-151.0,0.0002098,2]
[331286284,1720182652249,-151.0,0.0002098,2]
[331286285,1720182652259,-151.0,0.0002098,2]
[331286286,1720182652272,-151.0,0.0002098,2]
[331286287,1720182652289,-151.0,0.0002098,2]
[331286288,1720182652299,-344.177543,0.0002098,2]
[331286290,1720182652309,-151.0,0.0002098,2]
[331286291,1720182652320,-151.0,0.0002098,2]
[331286292,1720182652332,-344.177543,0.0002098,2]
[331286293,1720182652342,-151.0,0.0002098,2]
[331286294,1720182652352,-151.0,0.0002098,2]
[331286295,1720182652362,-565.886158,0.0002098,2]
[331286296,1720182652371,-151.0,0.0002098,2]
[331286297,1720182652381,-151.0,0.0002098,2]
[331286298,1720182652391,-565.886158,0.0002098,2]
[331286299,1720182652400,-151.0,0.0002098,2]
[331286300,1720182652410,-151.0,0.0002098,2]
[331286301,1720182652420,-151.0,0.0002098,2]
[331286302,1720182652430,-151.0,0.0002098,2]
[331286303,1720182652439,-205.551003,0.0002098,2]
[331286304,1720182652450,-151.0,0.0002098,2]
[331286305,1720182652460,-207.109281,0.0002098,2]
[331286306,1720182652473,-207.109281,0.0002098,2]
[331286307,1720182652484,-151.0,0.0002098,2]
[331286308,1720182652495,-151.0,0.0002098,2]
[331286309,1720182652510,-151.0,0.0002098,2]
[331286310,1720182652521,-151.0,0.0002098,2]
[331286311,1720182652531,-151.0,0.0002098,2]
[331286312,1720182652543,-151.0,0.0002098,2]
[331286313,1720182652554,-151.0,0.0002098,2]
[331286314,1720182652564,-170.643821,0.0002098,2]
[331286315,1720182652575,-170.643821,0.0002098,2]
[331286316,1720182652589,-151.0,0.0002098,2]
[331286317,1720182652627,-151.0,0.0002098,2]
[331286318,1720182652644,-151.0,0.0002098,2]
[331286319,1720182652654,-151.0,0.0002098,2]
[331286320,1720182652667,-151.0,0.0002098,2]
[331286321,1720182652678,-151.0,0.0002098,2]
[331286322,1720182652687,-5002.768897,0.0002098,2]
[331286323,1720182652697,-3079.237517,0.0002098,2]
[331286324,1720182652707,-5002.768897,0.0002098,2]
[331286325,1720182652717,-3079.237517,0.0002098,2]
[331286326,1720182652728,-151.0,0.0002098,2]
[331286327,1720182652738,-2273.438788,0.0002098,2]
[331286328,1720182652748,-2273.438788,0.0002098,2]
[331286329,1720182652758,-373.9511,0.0002098,2]
[331286330,1720182652768,-151.0,0.0002098,2]
[331286331,1720182652778,-373.9511,0.0002098,2]
[331286332,1720182652788,-656.259012,0.0002098,2]
[331286333,1720182652797,-381.561721,0.0002098,2]
[331286334,1720182652806,-656.259012,0.0002098,2]
[331286335,1720182652816,-381.561721,0.0002098,2]
[331286336,1720182652825,-151.0,0.0002098,2]
[331286337,1720182652835,-152.623285,0.0002098,2]
[331286338,1720182652844,-1264.789694,0.0002098,2]
[331286339,1720182652854,-1264.789694,0.0002098,2]
[331286340,1720182652863,-151.0,0.0002098,2]
[331286341,1720182652873,-151.0,0.0002098,2]
[331286342,1720182652883,-151.0,0.0002098,2]
[331286343,1720182652902,-25950.5065939,0.0002098,3]
[331286344,1720182652913,-45241.4255856,0.0002098,3]
[331286345,1720182652924,-151.37,0.0002098,2]
[331286346,1720182652934,-90482.8511713,0.0002099,3]
[331286347,1720182652944,-151.37,0.0002099,2]
[331286348,1720182652954,-151.37,0.0002099,2]
[331286349,1720182652964,-151.37,0.0002099,2]
[331286350,1720182652973,-225.33520988,0.00021,2]
[331286351,1720182652983,-261398.09882415,0.00021,3]
[331286352,1720182652996,-373.70393517,0.00021,3]
[331286353,1720182653007,-28076.70803877,0.00021,3]
[331286354,1720182653017,-151.0,0.00021,2]
[331286355,1720182653026,-151.0,0.00021,2]
[331286356,1720182653036,-151.0,0.00021,2]
[331286357,1720182653044,-151.0,0.00021,2]
[331286358,1720182653054,-151.0,0.00021,2]
[331286359,1720182653063,-151.0,0.00021,2]
[331286360,1720182653073,-151.0,0.00021,2]
[331286361,1720182653082,-151.0,0.00021,2]
[331286362,1720182653091,-151.0,0.00021,2]
[331286363,1720182653119,-151.0,0.00021,2]
[331286364,1720182653129,-151.0,0.00021,2]
[331286365,1720182653139,-151.0,0.00021,2]
[331286366,1720182653148,-151.0,0.00021,2]
[331286367,1720182653157,-151.0,0.00021,2]
[331286368,1720182653167,-151.0,0.00021,2]
[331286369,1720182653176,-151.0,0.00021,2]
[331286370,1720182653186,-151.0,0.00021,2]
[331286371,1720182653196,-151.0,0.00021,2]
[331286372,1720182653205,-151.0,0.00021,2]
[331286373,1720182653215,-151.0,0.00021,2]
[331286374,1720182653230,-151.0,0.00021,2]
[331286375,1720182653239,-151.0,0.00021,2]
[331286376,1720182653249,-210.857472,0.00021,2]
[331286377,1720182653258,-151.0,0.00021,2]
[331286378,1720182653268,-210.857472,0.00021,2]
[331286379,1720182653278,-151.0,0.00021,2]
[331286380,1720182653288,-151.0,0.00021,2]
[331286381,1720182653297,-151.0,0.00021,2]
[331286382,1720182653307,-152.253544,0.00021,2]
[331286383,1720182653316,-151.0,0.00021,2]
[331286384,1720182653326,-151.0,0.00021,2]
[331286385,1720182653336,-151.0,0.00021,2]
[331286386,1720182653346,-151.0,0.00021,2]
[331286387,1720182653355,-151.0,0.00021,2]
[331286388,1720182653365,-151.0,0.00021,2]
[331286389,1720182653374,-152.0008,0.00021,2]
[331286390,1720182653384,-151.0,0.00021,2]
[331286391,1720182653394,-151.0,0.00021,2]
[331286392,1720182653403,-151.0,0.00021,2]
[331286393,1720182653413,-151.0,0.00021,2]
[331286394,1720182653423,-151.0,0.00021,2]
[331286395,1720182653433,-151.0,0.00021,2]
[331286396,1720182653442,-167.555109,0.00021,2]
[331286397,1720182653452,-167.555109,0.00021,2]
[331286398,1720182653462,-269.593369,0.00021,2]
[331286399,1720182653471,-269.593369,0.00021,2]
[331286400,1720182653482,-158.200324,0.00021,2]
[331286401,1720182653491,-158.200324,0.00021,2]
[331286402,1720182653501,-151.0,0.00021,2]
[331286403,1720182653512,-151.0,0.00021,2]
[331286404,1720182653521,-151.0,0.00021,2]
[331286405,1720182653531,-364.895231,0.00021,2]
[331286406,1720182653540,-411.692342,0.00021,2]
[331286407,1720182653549,-411.692342,0.00021,2]
[331286408,1720182653559,-364.895231,0.00021,2]
[331286409,1720182653568,-172.146647,0.00021,2]
[331286410,1720182653579,-151.0,0.00021,2]
[331286411,1720182653591,-172.146647,0.00021,2]
[331286412,1720182653601,-151.0,0.00021,2]
[331286413,1720182653630,-351.792169,0.00021,2]
[331286414,1720182653640,-284.209976,0.00021,2]
[331286415,1720182653650,-151.93415,0.00021,2]
[331286416,1720182653659,-151.0,0.00021,2]
[331286417,1720182653671,-151.0,0.00021,2]
[331286418,1720182653680,-344.177543,0.00021,2]
[331286419,1720182653691,-344.177543,0.00021,2]
[331286420,1720182653700,-151.0,0.00021,2]
[331286421,1720182653710,-151.0,0.00021,2]
[331286422,1720182653720,-565.886158,0.00021,2]
[331286423,1720182653729,-151.0,0.00021,2]
[331286424,1720182653739,-151.0,0.00021,2]
[331286425,1720182653748,-565.886158,0.00021,2]
[331286426,1720182653758,-151.0,0.00021,2]
[331286427,1720182653768,-151.0,0.00021,2]
[331286428,1720182653778,-151.0,0.00021,2]
[331286429,1720182653788,-207.109281,0.00021,2]
[331286430,1720182653798,-207.109281,0.00021,2]
[331286431,1720182653807,-151.0,0.00021,2]
[331286432,1720182653817,-151.0,0.00021,2]
[331286433,1720182653826,-151.0,0.00021,2]
[331286434,1720182653836,-223.883824,0.00021,2]
[331286435,1720182653845,-151.0,0.00021,2]
[331286436,1720182653855,-151.0,0.00021,2]
[331286437,1720182653864,-170.643821,0.00021,2]
[331286438,1720182653873,-170.643821,0.00021,2]
[331286439,1720182653884,-151.0,0.00021,2]
[331286440,1720182653893,-152.453145,0.00021,2]
[331286441,1720182653903,-151.0,0.00021,2]
[331286442,1720182653912,-5002.768897,0.00021,2]
[331286443,1720182653922,-3079.237517,0.00021,2]
[331286444,1720182653931,-5002.768897,0.00021,2]
[331286445,1720182653941,-3079.237517,0.00021,2]
[331286446,1720182653950,-151.0,0.00021,2]
[331286447,1720182653959,-2273.438788,0.00021,2]
[331286448,1720182653969,-2273.438788,0.00021,2]
[331286449,1720182653978,-373.9511,0.00021,2]
[331286450,1720182653988,-373.9511,0.00021,2]
[331286451,1720182653998,-656.259012,0.00021,2]
[331286452,1720182654007,-381.561721,0.00021,2]
[331286453,1720182654016,-656.259012,0.00021,2]
[331286454,1720182654026,-381.561721,0.00021,2]
[331286455,1720182654036,-151.0,0.00021,2]
[331286456,1720182654045,-1264.789694,0.00021,2]
[331286457,1720182654055,-1264.789694,0.00021,2]
[331286458,1720182654065,-151.0,0.00021,2]
[331286459,1720182654075,-188.475102,0.00021,2]
[331286460,1720182654084,-151.0,0.00021,2]
[331286461,1720182654094,-500.0,0.00021169,2]
[331286462,1720182654114,-758.3061466,0.00021235,2]
[331286463,1720182654129,-168.42,0.00021355,2]
[331286464,1720182654138,-150.0,0.0002137,2]
[331286465,1720182654149,-180.0,0.00021397,2]
[331286466,1720182654158,-669.12,0.00021445,2]
[331286467,1720182654169,-758.3061466,0.0002151,2]
[331286468,1720182654179,-661.0041,0.000216,2]
[331286469,1720182654189,-447.1143,0.000216,2]
[331286470,1720182654199,-151.65,0.00021644,2]
[331286471,1720182654209,-214.97,0.00021644,2]
[331286472,1720182654219,-322.39,0.00021644,2]
[331286473,1720182654229,-154.74,0.00021644,2]
[331286474,1720182654239,-180.0,0.00021644,2]
[331286475,1720182654248,-151.37,0.0002169,2]
[331286476,1720182654258,-151.37,0.0002169,2]
[331286477,1720182654268,-250000.0,0.000217,2]
[331286478,1720182654278,-151.0,0.000217,2]
[331286479,1720182654288,-151.0,0.000217,2]
[331286480,1720182654298,-222.181621,0.000217,2]
[331286481,1720182654307,-151.0,0.000217,2]
[331286482,1720182654317,-151.0,0.000217,2]
[331286483,1720182654326,-151.0,0.000217,2]
[331286484,1720182654336,-151.0,0.000217,2]
[331286485,1720182654346,-151.0,0.000217,2]
[331286486,1720182654356,-151.0,0.000217,2]
[331286487,1720182654366,-151.0,0.000217,2]
[331286488,1720182654376,-151.0,0.000217,2]
[331286489,1720182654385,-151.0,0.000217,2]
[331286490,1720182654395,-151.0,0.000217,2]